[Event "Kupreichik Memorial Rapid 2019"]
[Site "Minsk"]
[Date "2019.08.17"]
[Round "9.31"]
[White "Uzlavataya, Anhelina"]
[Black "Yasiukovich, Sergei"]
[Result "0-1"]
[ECO "D78"]
[WhiteElo "2051"]
[BlackElo "1529"]
[Annotator "NA"]
[PlyCount "86"]
[EventDate "2019.08.15"]
[EventType "swiss"]
[EventCountry "BLR"]
[SourceTitle "playchess.com"]
[Source "ChessBase"]
[SourceQuality "1"]
[TimeControl "900+10"]

1. Nf3 {[%emt 0:00:00]} d5 {[%emt 0:00:00]} 2. g3 {[%emt 0:00:00]} Nf6 {[%emt 0:00:00]} 3. Bg2 {[%emt 0:00:00]} c6 {[%emt 0:00:00]} 4. O-O {[%emt 0:00:00]} g6 {[%emt 0:00:00]} 5. d4 {[%emt 0:00:01]} Bg7 {[%emt 0:00:00]} 6. c4 {[%emt 0:00:02]} O-O {[%emt 0:00:19]} 7. Nbd2 {[%emt 0:00:04]} Nbd7 {[%emt 0:00:22]} 8. b3 {[%emt 0:00:04]} b6 {[%emt 0:00:25]} 9. Bb2 {[%emt 0:00:06]} Bb7 {[%emt 0:00:03]} 10. Qc2 {[%emt 0:00:11]} Rc8 {[%emt 0:00:04]} 11. Rad1 {[%emt 0:04:18]} Qc7 {[%emt 0:00:10]} 12. e4 {[%emt 0:02:27]} dxe4 {[%emt 0:00:24]} 13. Ng5 {[%emt 0:00:02]} e5 {[%emt 0:01:02]} 14. Ngxe4 {[%emt 0:01:38]} exd4 {[%emt 0:00:13]} 15. Bxd4 {[%emt 0:00:12]} c5 {[%emt 0:00:14]} 16. Bb2 {[%emt 0:01:31]} Rcd8 {[%emt 0:01:08]} 17. Rfe1 {[%emt 0:03:11]} Rfe8 {[%emt 0:00:34]} 18. Nc3 Bxg2 19. Kxg2 {[%emt 0:02:10]} Qc6+ {[%emt 0:00:26]} 20. Nf3 {[%emt 0:00:36]} Rxe1 {[%emt 0:00:39]} 21. Rxe1 {[%emt 0:00:02]} Nf8 {[%emt 0:03:46]} 22. Qe2 {[%emt 0:00:37]} Re8 {[%emt 0:00:19]} 23. Qd2 {[%emt 0:00:14]} Rxe1 {[%emt 0:00:13]} 24. Qxe1 {[%emt 0:00:01]} Ne6 {[%emt 0:00:08]} 25. Qe5 {[%emt 0:00:56]} Nd4 {[%emt 0:06:24]} 26. Nd5 {[%emt 0:00:24]} Nxd5 {[%emt 0:01:28]} 27. Qxd5 {[%emt 0:00:20]} Qxd5 {[%emt 0:00:24]} 28. cxd5 {[%emt 0:00:02]} Kf8 {[%emt 0:00:14]} 29. Ng5 {[%emt 0:00:21]} Ke7 {[%emt 0:00:15]} 30. d6+ {[%emt 0:00:09]} Kxd6 {[%emt 0:00:06]} 31. Nxf7+ {[%emt 0:00:01]} Kd5 {[%emt 0:00:08]} 32. Ng5 {[%emt 0:00:07]} h6 {[%emt 0:00:04]} 33. Nh3 {[%emt 0:00:12]} g5 {[%emt 0:00:05]} 34. f4 {[%emt 0:00:09]} g4 {[%emt 0:00:07]} 35. Nf2 {[%emt 0:00:04]} h5 {[%emt 0:00:01]} 36. h3 {[%emt 0:00:06]} gxh3+ {[%emt 0:00:40]} 37. Nxh3 {[%emt 0:00:27]} Ke4 {[%emt 0:00:14]} 38. Kf2 {[%emt 0:00:07]} Bf6 {[%emt 0:00:06]} 39. Ng1 {[%emt 0:00:14]} h4 {[%emt 0:00:07]} 40. gxh4 Bxh4+ {[%emt 0:00:02]} 41. Kg2 {[%emt 0:00:24]} Kxf4 {[%emt 0:00:08]} 42. Bc1+ {[%emt 0:00:04]} Ke4 {[%emt 0:00:08]} 43. Nf3 {[%emt 0:00:04]} Nxf3 {[%emt 0:00:03]} 0-1

[Event "Kupreichik Memorial Rapid 2019"]
[Site "Minsk"]
[Date "2019.08.17"]
[Round "9.32"]
[White "Kozlov, Valentin"]
[Black "Tkachou, Viktar"]
[Result "0-1"]
[ECO "B01"]
[WhiteElo "1871"]
[BlackElo "1791"]
[Annotator "NA"]
[PlyCount "124"]
[EventDate "2019.08.15"]
[EventType "swiss"]
[EventCountry "BLR"]
[SourceTitle "playchess.com"]
[Source "ChessBase"]
[SourceQuality "1"]
[TimeControl "900+10"]

1. e4 {[%emt 0:00:00]} d5 {[%emt 0:00:00]} 2. exd5 {[%emt 0:00:00]} Qxd5 {[%emt 0:00:00]} 3. Nc3 {[%emt 0:00:00]} Qa5 {[%emt 0:00:00]} 4. Nf3 {[%emt 0:00:15]} Nf6 {[%emt 0:00:00]} 5. Bc4 {[%emt 0:00:50]} Bg4 {[%emt 0:00:41]} 6. h3 {[%emt 0:00:33]} Bh5 {[%emt 0:00:39]} 7. O-O {[%emt 0:00:08]} e6 {[%emt 0:00:13]} 8. d4 {[%emt 0:00:30]} Be7 {[%emt 0:00:32]} 9. Bd2 {[%emt 0:00:26]} c6 {[%emt 0:00:07]} 10. Nd5 {[%emt 0:01:45]} Qd8 {[%emt 0:00:08]} 11. Nxe7 {[%emt 0:00:39]} Qxe7 {[%emt 0:00:02]} 12. a3 {[%emt 0:00:27]} a5 {[%emt 0:01:09]} 13. Be2 {[%emt 0:00:27]} O-O {[%emt 0:00:41]} 14. Qe1 {[%emt 0:00:11]} b6 {[%emt 0:00:40]} 15. c4 {[%emt 0:00:32]} Nbd7 {[%emt 0:00:39]} 16. Bc3 {[%emt 0:00:20]} Ne4 {[%emt 0:00:31]} 17. Nh2 {[%emt 0:02:19]} Bxe2 {[%emt 0:00:57]} 18. Qxe2 {[%emt 0:00:02]} Nxc3 19. bxc3 {[%emt 0:00:01]} Rab8 {[%emt 0:02:00]} 20. Ng4 {[%emt 0:01:27]} Qd6 {[%emt 0:00:36]} 21. Rfe1 {[%emt 0:00:42]} c5 {[%emt 0:01:14]} 22. Red1 {[%emt 0:01:38]} cxd4 {[%emt 0:00:38]} 23. cxd4 {[%emt 0:00:10]} Rfc8 {[%emt 0:00:20]} 24. d5 {[%emt 0:01:10]} exd5 {[%emt 0:02:11]} 25. Rxd5 {[%emt 0:00:03]} Qc7 {[%emt 0:00:13]} 26. Rad1 {[%emt 0:00:12]} Nc5 {[%emt 0:00:52]} 27. Qf3 {[%emt 0:01:24]} Rd8 {[%emt 0:00:56]} 28. Ne3 {[%emt 0:00:27]} Qe7 {[%emt 0:00:47]} 29. Nf5 {[%emt 0:00:21]} Qf8 {[%emt 0:00:23]} 30. Qg3 {[%emt 0:00:30]} g6 {[%emt 0:00:14]} 31. Qg5 {[%emt 0:00:46]} f6 {[%emt 0:00:40]} 32. Nh6+ {[%emt 0:00:31]} Kg7 {[%emt 0:00:05]} 33. Rxd8 {[%emt 0:00:20]} Rxd8 {[%emt 0:00:13]} 34. Rxd8 {[%emt 0:00:18]} Qxd8 {[%emt 0:00:05]} 35. Nf5+ {[%emt 0:00:10]} Kg8 {[%emt 0:00:16]} 36. Qg4 {[%emt 0:00:08]} Kf7 {[%emt 0:00:16]} 37. Ne3 {[%emt 0:00:04]} Qd7 {[%emt 0:00:10]} 38. Qxd7+ Nxd7 {[%emt 0:00:01]} 39. f4 {[%emt 0:00:10]} Ke6 {[%emt 0:00:03]} 40. Kf2 {[%emt 0:00:03]} Kd6 {[%emt 0:00:03]} 41. Kf3 {[%emt 0:00:03]} Kc5 {[%emt 0:00:10]} 42. g4 {[%emt 0:00:06]} Kd4 {[%emt 0:00:07]} 43. h4 {[%emt 0:00:07]} Kc3 {[%emt 0:00:11]} 44. f5 {[%emt 0:00:22]} gxf5 {[%emt 0:00:22]} 45. g5 {[%emt 0:00:12]} fxg5 {[%emt 0:00:17]} 46. hxg5 {[%emt 0:00:01]} Kb3 {[%emt 0:00:11]} 47. Kf4 {[%emt 0:00:03]} Kxa3 {[%emt 0:00:07]} 48. Kxf5 {[%emt 0:00:01]} Kb2 {[%emt 0:00:06]} 49. Ke6 {[%emt 0:00:01]} Nf8+ {[%emt 0:00:17]} 50. Kf7 {[%emt 0:00:06]} Ng6 {[%emt 0:00:01]} 51. Kg7 {[%emt 0:00:11]} Nf4 {[%emt 0:00:02]} 52. Kxh7 {[%emt 0:00:04]} a4 {[%emt 0:00:02]} 53. Nd5 {[%emt 0:00:09]} a3 {[%emt 0:00:09]} 54. Nxf4 {[%emt 0:00:13]} a2 {[%emt 0:00:09]} 55. g6 {[%emt 0:00:01]} a1=Q {[%emt 0:00:14]} 56. g7 {[%emt 0:00:02]} Qh1+ {[%emt 0:00:05]} 57. Kg6 {[%emt 0:00:14]} Qe4+ {[%emt 0:00:12]} 58. Kf7 {[%emt 0:00:14]} Qxf4+ {[%emt 0:00:03]} 59. Ke8 {[%emt 0:00:06]} Qg5 {[%emt 0:00:03]} 60. Kf8 {[%emt 0:00:09]} Kc3 {[%emt 0:00:06]} 61. g8=Q {[%emt 0:00:01]} Qxg8+ {[%emt 0:00:02]} 62. Kxg8 {[%emt 0:00:01]} Kxc4 {[%emt 0:00:02]} 0-1

[Event "Kupreichik Memorial Rapid 2019"]
[Site "Minsk"]
[Date "2019.08.17"]
[Round "9.33"]
[White "Ostrovskiy, Viktor"]
[Black "Drobyshevsky, Vasily"]
[Result "0-1"]
[ECO "B01"]
[WhiteElo "1453"]
[BlackElo "1441"]
[Annotator "NA"]
[PlyCount "108"]
[EventDate "2019.08.15"]
[EventType "swiss"]
[EventCountry "BLR"]
[SourceTitle "playchess.com"]
[Source "ChessBase"]
[SourceQuality "1"]
[TimeControl "900+10"]

1. e4 {[%emt 0:00:00]} d5 {[%emt 0:00:00]} 2. exd5 {[%emt 0:00:00]} Qxd5 {[%emt 0:00:00]} 3. Nc3 {[%emt 0:00:00]} Qe5+ {[%emt 0:00:00]} 4. Qe2 {[%emt 0:01:32]} Qxe2+ {[%emt 0:00:00]} 5. Bxe2 {[%emt 0:00:03]} Bf5 {[%emt 0:00:00]} 6. d3 {[%emt 0:00:09]} c6 {[%emt 0:00:00]} 7. Nf3 {[%emt 0:00:05]} Nf6 {[%emt 0:00:01]} 8. O-O {[%emt 0:00:39]} e6 {[%emt 0:00:04]} 9. h3 {[%emt 0:00:07]} Be7 {[%emt 0:00:04]} 10. Be3 {[%emt 0:00:12]} Nbd7 {[%emt 0:00:05]} 11. Nh4 {[%emt 0:00:41]} Bg6 {[%emt 0:00:02]} 12. Nxg6 {[%emt 0:00:05]} hxg6 {[%emt 0:00:02]} 13. Ne4 {[%emt 0:00:18]} Nb6 {[%emt 0:00:13]} 14. Bf4 {[%emt 0:00:26]} Rd8 {[%emt 0:00:20]} 15. Be5 {[%emt 0:01:12]} Nbd5 {[%emt 0:00:27]} 16. a3 {[%emt 0:01:13]} O-O {[%emt 0:00:07]} 17. c4 {[%emt 0:02:36]} Nb6 {[%emt 0:00:08]} 18. Bc7 {[%emt 0:00:41]} Rd7 {[%emt 0:00:08]} 19. Bxb6 {[%emt 0:00:03]} axb6 {[%emt 0:00:01]} 20. Rfd1 {[%emt 0:00:38]} Rfd8 {[%emt 0:00:06]} 21. Nc3 {[%emt 0:01:02]} Bc5 {[%emt 0:00:44]} 22. Na4 {[%emt 0:00:07]} Bd4 {[%emt 0:00:10]} 23. Rab1 {[%emt 0:00:22]} e5 {[%emt 0:00:32]} 24. b4 {[%emt 0:00:32]} Ra8 {[%emt 0:00:17]} 25. Nb2 {[%emt 0:00:44]} Rxa3 {[%emt 0:00:10]} 26. c5 {[%emt 0:00:15]} Ra2 {[%emt 0:03:24]} 27. Rd2 {[%emt 0:01:04]} bxc5 {[%emt 0:00:18]} 28. bxc5 {[%emt 0:00:18]} Bxc5 {[%emt 0:00:12]} 29. Nc4 {[%emt 0:00:03]} Rxd2 {[%emt 0:00:11]} 30. Nxd2 {[%emt 0:00:03]} b5 {[%emt 0:00:30]} 31. Nb3 {[%emt 0:00:08]} Bd4 {[%emt 0:00:19]} 32. Bf3 {[%emt 0:00:25]} Nd5 {[%emt 0:01:12]} 33. Na5 {[%emt 0:00:44]} c5 {[%emt 0:02:17]} 34. Rxb5 {[%emt 0:00:18]} Nf4 {[%emt 0:00:24]} 35. Rb8+ {[%emt 0:01:50]} Kh7 {[%emt 0:00:03]} 36. Be4 {[%emt 0:01:25]} f5 {[%emt 0:00:09]} 37. Bc6 {[%emt 0:00:03]} Ra7 {[%emt 0:00:10]} 38. Nc4 {[%emt 0:00:16]} Nxd3 {[%emt 0:00:18]} 39. Ne3 {[%emt 0:00:32]} Ra1+ {[%emt 0:00:08]} 40. Kh2 {[%emt 0:00:01]} Nxf2 {[%emt 0:00:06]} 41. Nxf5 {[%emt 0:00:33]} gxf5 {[%emt 0:00:08]} 42. Bd7 {[%emt 0:00:04]} f4 {[%emt 0:00:36]} 43. Bf5+ {[%emt 0:00:02]} Kh6 {[%emt 0:00:07]} 44. Rb6+ {[%emt 0:00:04]} Kg5 {[%emt 0:00:05]} 45. g4 {[%emt 0:00:38]} f3 {[%emt 0:03:06]} 46. Kg3 {[%emt 0:00:11]} Rg1+ {[%emt 0:00:04]} 47. Kxf3 {[%emt 0:00:02]} e4+ {[%emt 0:00:32]} 48. Ke2 {[%emt 0:00:09]} Kf4 {[%emt 0:00:20]} 49. h4 {[%emt 0:00:09]} Nxg4 {[%emt 0:00:16]} 50. Bxg4 {[%emt 0:00:02]} Rxg4 {[%emt 0:00:07]} 51. h5 {[%emt 0:00:05]} Rg2+ {[%emt 0:00:02]} 52. Kf1 {[%emt 0:00:20]} Rb2 {[%emt 0:00:09]} 53. Rxb2 {[%emt 0:00:28]} Bxb2 {[%emt 0:00:02]} 54. Ke2 {[%emt 0:00:01]} Bd4 {[%emt 0:00:03]} 0-1

[Event "Kupreichik Memorial Rapid 2019"]
[Site "Minsk"]
[Date "2019.08.17"]
[Round "9.35"]
[White "Nikolaev, Dmitry"]
[Black "Ustiugov, Boris"]
[Result "1-0"]
[ECO "A04"]
[WhiteElo "1677"]
[BlackElo "1567"]
[Annotator "NA"]
[PlyCount "72"]
[EventDate "2019.08.15"]
[EventType "swiss"]
[EventCountry "BLR"]
[SourceTitle "playchess.com"]
[Source "ChessBase"]
[SourceQuality "1"]
[TimeControl "900+10"]

1. Nf3 {[%emt 0:00:00]} Nc6 {[%emt 0:00:00]} 2. c4 {[%emt 0:00:00]} e6 {[%emt 0:00:07]} 3. d4 {[%emt 0:00:00]} d5 {[%emt 0:00:08]} 4. b3 {[%emt 0:00:05]} Nf6 {[%emt 0:00:08]} 5. Bb2 {[%emt 0:00:03]} Be7 {[%emt 0:00:35]} 6. g3 {[%emt 0:00:43]} Bd7 {[%emt 0:00:24]} 7. Bg2 {[%emt 0:00:02]} O-O {[%emt 0:00:09]} 8. O-O {[%emt 0:00:03]} Rb8 {[%emt 0:00:19]} 9. Nbd2 {[%emt 0:00:02]} a6 {[%emt 0:00:16]} 10. Ne5 {[%emt 0:00:17]} Re8 {[%emt 0:01:00]} 11. Rc1 {[%emt 0:00:26]} Nxe5 {[%emt 0:00:09]} 12. dxe5 {[%emt 0:00:02]} Ng4 {[%emt 0:00:30]} 13. e4 {[%emt 0:01:01]} Nxf2 {[%emt 0:02:16]} 14. Kxf2 {[%emt 0:01:24]} Bc5+ {[%emt 0:00:10]} 15. Ke1 {[%emt 0:00:33]} dxc4 {[%emt 0:00:51]} 16. Rxc4 {[%emt 0:00:50]} Qe7 {[%emt 0:00:19]} 17. Qc1 {[%emt 0:01:56]} Bb6 {[%emt 0:00:12]} 18. Rf3 {[%emt 0:00:16]} Bb5 {[%emt 0:00:39]} 19. Rc2 {[%emt 0:00:40]} Rbd8 {[%emt 0:00:21]} 20. Nc4 {[%emt 0:00:14]} Ba7 {[%emt 0:00:44]} 21. a4 {[%emt 0:01:14]} Bc6 {[%emt 0:01:36]} 22. Ba3 {[%emt 0:00:16]} Bc5 {[%emt 0:02:09]} 23. Bxc5 {[%emt 0:00:48]} Qxc5 {[%emt 0:00:03]} 24. Qe3 {[%emt 0:00:55]} Qe7 {[%emt 0:00:49]} 25. Na5 {[%emt 0:01:42]} Qb4+ {[%emt 0:00:15]} 26. Qc3 {[%emt 0:00:02]} Qxe4+ {[%emt 0:00:12]} 27. Re3 {[%emt 0:00:09]} Qg4 {[%emt 0:00:47]} 28. Nxc6 {[%emt 0:00:23]} Rd1+ {[%emt 0:01:20]} 29. Kf2 {[%emt 0:00:02]} bxc6 {[%emt 0:00:21]} 30. Rd2 {[%emt 0:01:04]} Rd8 {[%emt 0:01:24]} 31. Rxd8+ {[%emt 0:01:06]} Rxd8 {[%emt 0:00:02]} 32. h3 {[%emt 0:01:23]} Qf5+ {[%emt 0:00:46]} 33. Kg1 {[%emt 0:00:02]} Rd1+ {[%emt 0:00:40]} 34. Re1 {[%emt 0:00:17]} Rd3 {[%emt 0:00:19]} 35. Qxc6 {[%emt 0:00:15]} g6 {[%emt 0:00:13]} 36. Qe4 {[%emt 0:00:54]} Rxg3 1-0

[Event "Kupreichik Memorial Rapid 2019"]
[Site "Minsk"]
[Date "2019.08.17"]
[Round "9.36"]
[White "Pogorelov, Aleksey"]
[Black "Melekhov, Artyom"]
[Result "1-0"]
[ECO "A40"]
[WhiteElo "1548"]
[BlackElo "1471"]
[Annotator "NA"]
[PlyCount "69"]
[EventDate "2019.08.15"]
[EventType "swiss"]
[EventCountry "BLR"]
[SourceTitle "playchess.com"]
[Source "ChessBase"]
[SourceQuality "1"]
[TimeControl "900+10"]

1. d4 {[%emt 0:00:00]} e6 {[%emt 0:00:00]} 2. Nf3 {[%emt 0:00:00]} Nf6 {[%emt 0:00:00]} 3. Bf4 {[%emt 0:00:00]} d5 {[%emt 0:00:00]} 4. e3 {[%emt 0:00:00]} c5 {[%emt 0:00:00]} 5. Nbd2 {[%emt 0:00:05]} Nc6 {[%emt 0:00:00]} 6. c3 {[%emt 0:00:02]} Bd6 {[%emt 0:00:00]} 7. Bg3 {[%emt 0:00:07]} h6 {[%emt 0:00:00]} 8. Bd3 {[%emt 0:00:07]} O-O {[%emt 0:00:05]} 9. Rc1 {[%emt 0:00:13]} c4 {[%emt 0:00:48]} 10. Bb1 {[%emt 0:00:06]} b5 {[%emt 0:00:01]} 11. Qc2 {[%emt 0:00:25]} Qd7 {[%emt 0:01:21]} 12. Ne5 {[%emt 0:00:06]} Qc7 {[%emt 0:00:22]} 13. f4 {[%emt 0:02:22]} b4 {[%emt 0:00:45]} 14. Bh4 {[%emt 0:00:56]} Re8 {[%emt 0:01:28]} 15. Bxf6 {[%emt 0:01:16]} gxf6 {[%emt 0:00:01]} 16. Qh7+ {[%emt 0:00:43]} Kf8 {[%emt 0:00:01]} 17. Qxh6+ {[%emt 0:01:35]} Ke7 {[%emt 0:00:02]} 18. Ng4 {[%emt 0:00:13]} f5 {[%emt 0:01:06]} 19. Nf6 {[%emt 0:01:04]} Rf8 {[%emt 0:00:52]} 20. Bxf5 {[%emt 0:00:08]} bxc3 {[%emt 0:00:08]} 21. bxc3 {[%emt 0:01:35]} Ba6 {[%emt 0:00:35]} 22. Qg5 {[%emt 0:01:45]} Bxf4 {[%emt 0:00:19]} 23. Nxd5+ {[%emt 0:01:13]} Kd7 {[%emt 0:00:28]} 24. exf4 {[%emt 0:00:34]} Qd6 {[%emt 0:00:22]} 25. Ne4 {[%emt 0:00:23]} Qa3 {[%emt 0:00:12]} 26. O-O {[%emt 0:01:48]} Bb7 {[%emt 0:01:59]} 27. Bh3 {[%emt 0:00:55]} Nxd4 {[%emt 0:00:49]} 28. Ndf6+ {[%emt 0:00:42]} Kc8 {[%emt 0:00:10]} 29. cxd4 {[%emt 0:00:18]} Qe3+ {[%emt 0:00:16]} 30. Kh1 {[%emt 0:00:26]} Bxe4 {[%emt 0:00:10]} 31. Nxe4 {[%emt 0:00:00]} Qxe4 {[%emt 0:00:06]} 32. Rxc4+ {[%emt 0:00:07]} Kd7 33. Qb5+ Ke7 34. Rc7+ Kf6 35. Qg5# 1-0

[Event "Kupreichik Memorial Rapid 2019"]
[Site "Minsk"]
[Date "2019.08.17"]
[Round "9.37"]
[White "Rataika, Mikalai"]
[Black "Laptev, Viktor"]
[Result "1/2-1/2"]
[ECO "A48"]
[WhiteElo "1920"]
[BlackElo "1424"]
[Annotator "NA"]
[PlyCount "72"]
[EventDate "2019.08.15"]
[EventType "swiss"]
[EventCountry "BLR"]
[SourceTitle "playchess.com"]
[Source "ChessBase"]
[SourceQuality "1"]
[TimeControl "900+10"]

1. d4 {[%emt 0:00:00]} Nf6 {[%emt 0:00:00]} 2. Nf3 {[%emt 0:00:00]} g6 {[%emt 0:00:00]} 3. Nc3 {[%emt 0:00:03]} d5 {[%emt 0:00:01]} 4. e3 {[%emt 0:00:11]} Bg7 {[%emt 0:00:02]} 5. b3 {[%emt 0:00:09]} O-O {[%emt 0:00:07]} 6. Bb2 {[%emt 0:00:01]} c6 {[%emt 0:00:13]} 7. Bd3 {[%emt 0:00:04]} Nbd7 {[%emt 0:00:02]} 8. O-O {[%emt 0:00:10]} Qc7 {[%emt 0:00:23]} 9. e4 {[%emt 0:00:15]} dxe4 {[%emt 0:00:16]} 10. Nxe4 {[%emt 0:00:02]} Nxe4 {[%emt 0:00:15]} 11. Bxe4 {[%emt 0:00:02]} Nf6 {[%emt 0:00:04]} 12. Bd3 {[%emt 0:00:08]} Bg4 {[%emt 0:00:33]} 13. h3 {[%emt 0:00:03]} Bxf3 {[%emt 0:00:20]} 14. Qxf3 {[%emt 0:00:02]} Rad8 {[%emt 0:00:09]} 15. Rfe1 {[%emt 0:01:04]} e6 {[%emt 0:00:05]} 16. Bf1 {[%emt 0:00:22]} Rd7 {[%emt 0:01:24]} 17. g3 {[%emt 0:00:26]} Rfd8 {[%emt 0:00:04]} 18. Bg2 {[%emt 0:00:08]} Nd5 {[%emt 0:01:12]} 19. Re2 {[%emt 0:01:01]} c5 {[%emt 0:00:33]} 20. c4 {[%emt 0:01:13]} Nb4 {[%emt 0:01:10]} 21. dxc5 {[%emt 0:00:14]} Rd1+ {[%emt 0:00:36]} 22. Rxd1 {[%emt 0:00:12]} Rxd1+ {[%emt 0:00:14]} 23. Kh2 {[%emt 0:00:04]} Bxb2 {[%emt 0:00:28]} 24. Rxb2 {[%emt 0:00:03]} Rd7 {[%emt 0:00:26]} 25. a3 {[%emt 0:00:41]} Nd3 {[%emt 0:00:03]} 26. Rd2 {[%emt 0:00:44]} Nxc5 {[%emt 0:00:02]} 27. Rxd7 {[%emt 0:00:23]} Qxd7 {[%emt 0:00:01]} 28. Qe3 {[%emt 0:01:16]} b6 {[%emt 0:00:05]} 29. b4 {[%emt 0:00:55]} Nb7 {[%emt 0:01:07]} 30. Bxb7 {[%emt 0:01:27]} Qxb7 {[%emt 0:00:00]} 31. c5 {[%emt 0:00:19]} Kf8 {[%emt 0:00:26]} 32. b5 {[%emt 0:00:36]} Ke7 {[%emt 0:00:20]} 33. c6 {[%emt 0:00:48]} Qc7 {[%emt 0:00:03]} 34. Qg5+ {[%emt 0:00:43]} f6 {[%emt 0:00:12]} 35. Qd2 {[%emt 0:00:42]} g5 {[%emt 0:00:28]} 36. Qd3 {[%emt 0:00:27]} Ke8 1/2-1/2

[Event "Kupreichik Memorial Rapid 2019"]
[Site "Minsk"]
[Date "2019.08.17"]
[Round "9.38"]
[White "Makarau, Yauheni"]
[Black "Karlov, Egor"]
[Result "0-1"]
[ECO "C01"]
[WhiteElo "1459"]
[BlackElo "1728"]
[Annotator "NA"]
[PlyCount "80"]
[EventDate "2019.08.15"]
[EventType "swiss"]
[EventCountry "BLR"]
[SourceTitle "playchess.com"]
[Source "ChessBase"]
[SourceQuality "1"]
[TimeControl "900+10"]

1. e4 {[%emt 0:00:00]} e6 {[%emt 0:00:00]} 2. d4 {[%emt 0:00:00]} d5 {[%emt 0:00:00]} 3. exd5 {[%emt 0:00:00]} exd5 {[%emt 0:00:00]} 4. Bd3 {[%emt 0:00:00]} Nf6 {[%emt 0:00:00]} 5. Nf3 {[%emt 0:00:00]} Bd6 {[%emt 0:00:00]} 6. O-O {[%emt 0:00:04]} O-O {[%emt 0:00:00]} 7. c3 {[%emt 0:00:10]} c6 {[%emt 0:00:03]} 8. Bg5 {[%emt 0:00:34]} Nbd7 {[%emt 0:00:43]} 9. Nbd2 {[%emt 0:00:02]} Qc7 {[%emt 0:00:31]} 10. Qc2 {[%emt 0:00:21]} h6 {[%emt 0:00:02]} 11. Bh4 {[%emt 0:00:19]} Nh5 {[%emt 0:02:42]} 12. Rfe1 {[%emt 0:01:51]} Nf4 {[%emt 0:01:01]} 13. Bf5 {[%emt 0:03:48]} Nb6 {[%emt 0:00:12]} 14. Bg3 {[%emt 0:02:12]} Bxf5 {[%emt 0:00:54]} 15. Qxf5 {[%emt 0:00:02]} Rfe8 {[%emt 0:00:03]} 16. Ne5 {[%emt 0:01:21]} Bxe5 {[%emt 0:02:03]} 17. dxe5 {[%emt 0:00:33]} Ne6 {[%emt 0:00:10]} 18. Nf3 {[%emt 0:00:54]} Nd7 {[%emt 0:00:55]} 19. Nd4 {[%emt 0:00:51]} Ndc5 {[%emt 0:00:04]} 20. f3 {[%emt 0:01:31]} Qb6 {[%emt 0:00:49]} 21. b4 {[%emt 0:00:44]} Nxd4 {[%emt 0:02:46]} 22. cxd4 {[%emt 0:00:40]} Ne6 {[%emt 0:00:03]} 23. Bf2 {[%emt 0:00:20]} Qxb4 {[%emt 0:00:18]} 24. Rab1 {[%emt 0:00:04]} Qe7 {[%emt 0:00:01]} 25. Re2 {[%emt 0:00:33]} Rac8 {[%emt 0:01:03]} 26. Reb2 {[%emt 0:00:14]} b6 {[%emt 0:00:01]} 27. Be1 {[%emt 0:00:01]} Nxd4 {[%emt 0:00:06]} 28. Qd3 {[%emt 0:00:09]} Qxe5 {[%emt 0:00:48]} 29. Bc3 {[%emt 0:00:05]} Ne2+ {[%emt 0:00:03]} 30. Rxe2 {[%emt 0:01:44]} Qxe2 {[%emt 0:00:05]} 31. Qd4 {[%emt 0:00:11]} Qe3+ {[%emt 0:00:14]} 32. Qxe3 {[%emt 0:00:24]} Rxe3 {[%emt 0:00:01]} 33. Bd4 {[%emt 0:00:13]} Re2 {[%emt 0:00:04]} 34. a3 {[%emt 0:00:02]} c5 {[%emt 0:00:04]} 35. Kf1 {[%emt 0:00:32]} Re6 {[%emt 0:00:17]} 36. Bf2 {[%emt 0:00:05]} d4 {[%emt 0:01:17]} 37. Rd1 {[%emt 0:00:20]} Rce8 {[%emt 0:00:06]} 38. Rd2 {[%emt 0:00:05]} Kh7 {[%emt 0:00:13]} 39. g4 {[%emt 0:00:06]} Rd8 {[%emt 0:00:40]} 40. h4 {[%emt 0:00:13]} b5 {[%emt 0:00:10]} 0-1

[Event "Kupreichik Memorial Rapid 2019"]
[Site "Minsk"]
[Date "2019.08.17"]
[Round "9.39"]
[White "Patokova, Viktoriya"]
[Black "Kasperovich, Mikhail"]
[Result "1-0"]
[ECO "C01"]
[WhiteElo "1503"]
[BlackElo "1324"]
[Annotator "NA"]
[PlyCount "69"]
[EventDate "2019.08.15"]
[EventType "swiss"]
[EventCountry "BLR"]
[SourceTitle "playchess.com"]
[Source "ChessBase"]
[SourceQuality "1"]
[TimeControl "900+10"]

1. e4 {[%emt 0:00:00]} e6 {[%emt 0:00:00]} 2. d4 {[%emt 0:00:00]} d5 {[%emt 0:00:00]} 3. exd5 {[%emt 0:00:01]} exd5 {[%emt 0:00:00]} 4. Nf3 {[%emt 0:00:01]} Nf6 {[%emt 0:00:00]} 5. Bg5 {[%emt 0:00:08]} Bg4 {[%emt 0:00:00]} 6. h3 {[%emt 0:00:10]} Bh5 {[%emt 0:00:01]} 7. Bd3 {[%emt 0:00:08]} Bd6 {[%emt 0:00:03]} 8. O-O {[%emt 0:00:05]} O-O {[%emt 0:00:02]} 9. c4 {[%emt 0:00:13]} dxc4 {[%emt 0:00:11]} 10. Bxc4 {[%emt 0:00:02]} c6 {[%emt 0:00:18]} 11. Nc3 {[%emt 0:00:05]} Nbd7 {[%emt 0:00:09]} 12. a3 {[%emt 0:00:06]} a5 {[%emt 0:00:08]} 13. Qd3 {[%emt 0:00:08]} Bg6 {[%emt 0:00:15]} 14. Qd2 {[%emt 0:00:13]} h6 {[%emt 0:00:02]} 15. Bh4 {[%emt 0:00:13]} Qc7 {[%emt 0:00:10]} 16. Rfe1 {[%emt 0:00:14]} Bf4 {[%emt 0:00:07]} 17. Qe2 {[%emt 0:00:28]} Rfe8 {[%emt 0:00:04]} 18. Qf1 {[%emt 0:00:02]} Ne4 {[%emt 0:03:05]} 19. Bd3 {[%emt 0:01:19]} Nd2 {[%emt 0:04:46]} 20. Nxd2 {[%emt 0:00:16]} Bxd2 {[%emt 0:00:02]} 21. Rxe8+ {[%emt 0:00:13]} Rxe8 {[%emt 0:00:02]} 22. Bxg6 {[%emt 0:00:05]} fxg6 {[%emt 0:00:12]} 23. Qd3 {[%emt 0:00:38]} Bf4 {[%emt 0:01:03]} 24. Qxg6 {[%emt 0:00:20]} Rf8 {[%emt 0:00:17]} 25. Ne4 {[%emt 0:00:55]} Kh8 {[%emt 0:01:07]} 26. Re1 {[%emt 0:01:09]} Qc8 {[%emt 0:03:46]} 27. Nd6 {[%emt 0:02:34]} Bxd6 {[%emt 0:00:13]} 28. Qxd6 {[%emt 0:00:03]} Nb6 {[%emt 0:00:23]} 29. Re7 {[%emt 0:01:10]} Nd5 {[%emt 0:00:07]} 30. Re6 {[%emt 0:00:38]} Nf4 {[%emt 0:00:27]} 31. Re7 {[%emt 0:01:09]} Nd5 {[%emt 0:01:03]} 32. Rd7 {[%emt 0:01:25]} Nb6 {[%emt 0:00:54]} 33. Rc7 {[%emt 0:01:18]} Qb8 {[%emt 0:00:51]} 34. Qe7 {[%emt 0:00:14]} Nd5 {[%emt 0:00:02]} 35. Qxg7# 1-0